bitfinex-derivatives/quotes_SOLF0:USTF0_20260105
["timestamp","ask_amount","ask_price","bid_price","bid_amount"]
[1767577387972,10.30457739,137.2,137.13,6.62555903]
[1767577388270,2.27047647,137.19,137.12,6.62555903]
[1767577389777,8.83397647,137.19,137.12,6.62555903]
[1767577390169,8.83397647,137.19,137.11,8.80016685]
[1767577390484,8.83397647,137.19,137.11,6.62555903]
[1767577390485,2.27047647,137.17,137.11,6.62555903]
[1767577392277,2.27047647,137.16,137.08,6.62555903]
[1767577392677,2.27047647,137.16,137.08,8.80016685]
[1767577394376,6.5643,137.17,137.09,8.80016685]
[1767577394877,86.12,137.18,137.11,2.17460782]
[1767577395176,2.27047647,137.17,137.1,6.62555903]
[1767577395371,8.83527647,137.16,137.08,8.80016685]
[1767577396975,2.27047647,137.15,137.08,8.80016685]
[1767577397680,2.27047647,137.14,137.07,6.62555903]
[1767577398376,8.83637647,137.14,137.06,6.62555903]
[1767577399075,6.5663,137.13,137.06,6.62555903]
[1767577399684,92.7063,137.13,137.06,6.62555903]
[1767577401679,92.7063,137.13,137.05,6.62555903]
[1767577402386,94.97677647,137.13,137.05,6.62555903]
[1767577403481,94.97677647,137.13,137.05,8.80016685]
[1767577403672,94.97677647,137.13,137.05,2.17460782]
[1767577404779,94.97677647,137.13,137.05,8.80016685]
[1767577405082,94.97677647,137.13,137.06,2.17460782]
[1767577405083,86.14,137.13,137.06,2.17460782]
[1767577405384,86.14,137.13,137.06,8.80016685]
[1767577406485,86.14,137.13,137.06,2.17460782]
[1767577406782,88.41047647,137.13,137.06,2.17460782]
[1767577408379,88.41047647,137.13,137.06,15.36926685]
[1767577409786,2.27047647,137.16,137.09,2.17460782]
[1767577409987,2.27047647,137.16,137.09,8.80016685]
[1767577411283,2.27047647,137.16,137.1,13.19285903]
[1767577412683,86.16,137.17,137.11,6.5668]
[1767577415994,86.16,137.17,137.11,13.19235903]
[1767577416194,74.8779,137.17,137.12,6.5663]
[1767577416397,2.26478073,137.19,137.12,2.30288571]
[1767577416696,2.26478073,137.19,137.12,8.92844474]
[1767577416899,2.26478073,137.19,137.12,2.30288571]
[1767577417082,0.05343864,137.17,137.14,0.05297247]
[1767577419600,2.22865229,137.22,137.14,2.35585818]
[1767577419896,6.5611,137.24,137.14,2.35585818]
[1767577419897,94.92975229,137.24,137.15,8.92844474]
[1767577420086,88.36865229,137.24,137.16,6.5644]
[1767577420286,88.36865229,137.24,137.16,15.49284474]
[1767577420993,88.36865229,137.24,137.19,0.04913988]
[1767577421195,2.22865229,137.23,137.16,6.62555903]
[1767577421396,2.22865229,137.22,137.14,6.62555903]
[1767577421585,2.22865229,137.22,137.13,2.30288571]
[1767577422098,2.22865229,137.2,137.13,2.30288571]
[1767577428804,2.22865229,137.2,137.12,6.62555903]
[1767577429098,2.22865229,137.2,137.12,8.92844474]
[1767577429501,2.22865229,137.19,137.12,8.92844474]
[1767577430002,2.22865229,137.19,137.11,6.62555903]
[1767577430504,2.22865229,137.18,137.1,8.92844474]
[1767577431596,2.22865229,137.17,137.08,6.62555903]
[1767577432702,2.22865229,137.15,137.08,6.62555903]
[1767577437610,8.79255229,137.18,137.09,2.30288571]
[1767577437910,2.22865229,137.17,137.09,8.92844474]
[1767577438505,8.79295229,137.17,137.09,8.92844474]
[1767577439317,8.79345229,137.16,137.09,8.92844474]
[1767577440613,2.373733,137.15,137.09,6.62555903]
[1767577440915,2.373733,137.14,137.06,8.86216183]
[1767577441110,6.5667,137.12,137.06,8.86216183]
[1767577441308,88.513733,137.13,137.06,2.2366028]
[1767577441606,88.513733,137.13,137.06,8.86216183]
[1767577442808,95.079933,137.13,137.06,8.86216183]
[1767577444717,6.5653,137.15,137.07,2.2366028]
[1767577444903,6.5653,137.15,137.08,2.2366028]
[1767577445103,88.513733,137.16,137.08,8.86216183]
[1767577445509,86.14,137.16,137.1,2.2366028]
[1767577447118,86.14,137.16,137.09,13.19325903]
[1767577447119,2.373733,137.15,137.09,6.62555903]
[1767577447323,88.513733,137.16,137.09,8.86216183]
[1767577447515,88.513733,137.16,137.1,6.62555903]
[1767577447817,2.373733,137.15,137.08,6.62555903]
[1767577448013,190.55910685,137.16,137.06,10.72824056]
[1767577448014,2.373733,137.13,137.06,2.2366028]
[1767577448823,2.373733,137.1,137.05,6.62555903]
[1767577449115,2.373733,137.1,137.04,6.62555903]
[1767577449716,2.373733,137.1,137.03,23.966817]
[1767577449916,8.941433,137.1,137.03,23.966817]
[1767577450216,2.373733,137.09,137.03,23.966817]
[1767577450410,2.373733,137.09,137.03,17.34125797]
[1767577450611,8.942333,137.08,137.03,17.34125797]
[1767577452216,2.373733,137.06,136.98,6.62555903]
[1767577452415,88.533733,137.05,136.98,6.62555903]
[1767577453326,88.533733,137.05,136.97,6.62555903]
[1767577453529,2.373733,137.02,136.96,6.62555903]
[1767577453730,2.373733,137.02,136.94,6.62555903]
[1767577454024,2.373733,137.02,136.94,8.86216183]
[1767577454424,2.373733,137.01,136.92,6.62555903]
[1767577454728,88.533733,137.0,136.91,8.86216183]
[1767577454923,95.106433,137.0,136.91,8.86216183]
[1767577455118,95.106433,137.0,136.91,2.2366028]
[1767577455119,88.533733,137.0,136.91,2.2366028]
[1767577456123,106.16462221,137.03,136.93,2.2366028]
[1767577456124,88.553733,137.03,136.93,2.2366028]
[1767577456319,2.373733,137.02,136.93,2.2366028]
[1767577458429,2.373733,137.01,136.9,2.2366028]
[1767577459523,8.945933,137.01,136.9,8.8132028]
[1767577459724,8.945933,137.01,136.91,2.2366028]
[1767577460629,2.373733,137.0,136.91,2.2366028]
[1767577461732,2.373733,137.0,136.91,8.8129028]
[1767577461922,2.373733,137.0,136.92,2.2366028]
[1767577462119,88.553733,137.03,136.92,2.2366028]
[1767577462332,88.553733,137.03,136.94,2.2366028]
[1767577462542,86.18,137.03,136.94,2.2366028]
[1767577463321,86.18,137.03,136.96,2.2366028]
[1767577463630,8.943233,137.06,136.96,2.2366028]
[1767577464431,8.943933,137.05,136.96,2.2366028]
[1767577464619,2.373733,137.04,136.96,2.2366028]
[1767577465132,2.373733,137.04,136.94,6.575]
[1767577465133,2.373733,137.02,136.92,8.8125028]
[1767577465444,0.05180382,137.01,136.92,8.8125028]
[1767577465727,0.05180382,137.01,136.93,2.2366028]
[1767577465927,2.373733,137.02,136.93,2.2366028]
[1767577466437,2.373733,137.02,136.94,2.2366028]
[1767577467136,0.04908861,136.99,136.94,2.2366028]
[1767577467534,86.22,137.04,136.95,2.2366028]
[1767577467734,86.22,137.04,136.95,2.28516848]
[1767577467936,86.22,137.04,136.95,2.2366028]
[1767577468633,86.22,137.04,136.96,8.8105028]
[1767577471134,2.20153611,137.03,136.94,6.5749]
[1767577471331,2.20153611,137.03,136.95,2.42477588]
[1767577472040,86.22,137.04,136.97,2.42477588]
[1767577472236,2.20153611,137.06,136.98,2.42477588]
[1767577472639,86.22,137.08,136.99,8.99727588]
[1767577473144,88.42153611,137.08,136.99,8.99727588]
[1767577473741,88.42153611,137.08,137.0,8.99677588]
[1767577474743,86.22,137.08,137.01,2.42477588]
[1767577477850,88.57968436,137.08,137.0,6.572]
[1767577479041,88.57968436,137.08,136.98,104.60963916]
[1767577479042,2.35968436,137.12,137.01,2.36183916]
[1767577479245,2.35968436,137.12,137.02,2.36183916]
[1767577479246,88.55968436,137.12,137.02,2.36183916]
[1767577479450,2.35968436,137.11,137.02,2.36183916]
[1767577480544,2.35968436,137.11,137.02,8.93293916]
[1767577482556,8.92688436,137.11,137.02,8.93293916]
[1767577483449,8.92688436,137.11,137.0,8.93403916]
[1767577483450,2.35968436,137.11,137.0,8.93403916]
[1767577484564,2.35968436,137.09,137.0,8.93403916]
[1767577485655,2.35968436,137.08,137.0,8.93403916]
[1767577485851,2.35968436,137.08,137.0,2.36183916]
[1767577486548,2.35968436,137.08,137.03,0.04801841]
[1767577486750,0.05598527,137.05,137.03,0.04801841]
[1767577487155,2.35968436,137.08,137.03,0.04801841]
[1767577487555,8.92738436,137.1,137.03,0.04801841]
[1767577487956,2.35968436,137.1,137.03,2.40985757]
[1767577490154,92.7668,137.12,137.04,6.5701]
[1767577490155,86.2,137.12,137.04,6.5701]
[1767577490350,86.2,137.12,137.05,2.36183916]
[1767577490954,86.2,137.12,137.07,0.05355157]
[1767577494461,88.55968436,137.12,137.07,0.05355157]
[1767577496359,8.92678436,137.11,137.07,0.05355157]
[1767577496561,2.35968436,137.1,137.02,8.93293916]
[1767577498959,2.35968436,137.1,137.03,2.36183916]
[1767577499166,86.2,137.12,137.04,2.36183916]
[1767577499352,88.55968436,137.12,137.04,2.36183916]
[1767577500062,88.55968436,137.12,137.04,8.93203916]
[1767577500367,88.53968436,137.15,137.08,6.5683]
[1767577500661,2.35968436,137.15,137.08,8.92016207]
[1767577500864,86.18,137.17,137.09,2.35186207]
[1767577501062,2.18880437,137.16,137.04,10.84349983]
[1767577501369,2.18880437,137.14,137.05,2.35186207]
[1767577502052,2.18880437,137.13,137.04,6.5703]
[1767577502249,2.18880437,137.13,137.04,8.92216207]
[1767577502760,2.18880437,137.13,137.01,188.428]
[1767577502761,2.18880437,137.11,137.01,10.84349983]
[1767577502967,2.18880437,137.11,137.01,2.35186207]
[1767577503660,2.18880437,137.11,137.02,6.571]
[1767577504261,2.18880437,137.1,137.02,6.571]
[1767577504758,2.18880437,137.1,137.01,2.35186207]
[1767577505164,2.18880437,137.1,137.03,8.92236207]
[1767577505355,88.36880437,137.12,137.04,2.35186207]
[1767577505560,2.18880437,137.11,137.01,10.84349983]
[1767577505854,2.18880437,137.11,137.01,2.35186207]
[1767577506056,2.18880437,137.11,137.02,6.5711]
[1767577506261,2.18880437,137.14,137.04,2.35186207]
[1767577506462,2.18880437,137.14,137.05,2.35186207]
[1767577507267,8.75310437,137.17,137.06,2.35186207]
[1767577507458,2.18880437,137.16,137.07,2.35186207]
[1767577507862,2.18880437,137.15,137.07,2.35186207]
[1767577508062,2.18880437,137.15,137.05,8.92166207]
[1767577508269,2.18880437,137.15,137.05,2.35186207]
[1767577508470,2.18880437,137.14,137.05,2.35186207]
[1767577510275,0.05290766,137.11,137.06,2.35186207]
[1767577510565,2.18880437,137.16,137.08,0.05610187]
[1767577510767,2.18880437,137.16,137.03,119.5616691]
[1767577510768,2.18880437,137.12,137.02,2.35186207]
[1767577510960,102.1389,137.13,137.02,2.35186207]
[1767577510961,88.36880437,137.11,137.02,2.35186207]
[1767577511162,2.18880437,137.11,137.04,2.35186207]
[1767577511361,2.18880437,137.14,137.04,2.35186207]
[1767577511564,2.18880437,137.14,137.05,2.35186207]
[1767577511966,6.5647,137.16,137.06,2.35186207]
[1767577512175,86.18,137.16,137.08,2.35186207]
[1767577512373,86.18,137.18,137.08,2.35186207]
[1767577512966,88.36880437,137.18,137.09,2.35186207]
[1767577513169,2.18880437,137.17,137.09,2.35186207]
[1767577513673,2.18880437,137.17,137.06,17.41269983]
[1767577514168,2.18880437,137.17,137.06,8.92106207]
[1767577514569,2.18880437,137.16,137.06,8.92106207]
[1767577514867,2.18880437,137.16,137.06,17.41269983]
[1767577515068,2.18880437,137.16,137.07,6.5687]
[1767577515473,2.18880437,137.16,137.07,8.92056207]
[1767577517066,2.18880437,137.16,137.08,2.35186207]
[1767577517274,88.34880437,137.16,137.08,2.35186207]
[1767577517671,0.05170773,137.13,137.11,0.04681957]
[1767577517878,0.05170773,137.13,137.08,6.5682]
[1767577517879,0.05170773,137.13,137.07,10.84349983]
[1767577518064,0.05170773,137.13,137.07,2.35186207]
[1767577518377,0.05170773,137.13,137.07,10.84349983]
[1767577518571,0.05170773,137.13,137.07,2.35186207]
[1767577519168,0.05170773,137.13,137.07,10.84349983]
[1767577519476,0.05170773,137.13,137.07,2.35186207]
[1767577520677,2.2405121,137.13,137.06,8.49163776]
[1767577520874,2.2405121,137.13,137.05,15.06123776]
[1767577521075,2.2405121,137.13,137.05,17.41309983]
[1767577522780,2.18880437,137.1,137.04,8.49163776]
[1767577522987,90.64868777,137.09,137.02,8.49163776]
[1767577523677,0.04749815,137.07,137.02,10.84349983]
[1767577523879,86.16,137.11,137.03,2.35186207]
[1767577524372,88.34880437,137.11,137.03,2.35186207]
[1767577524574,2.18880437,137.1,137.02,8.49163776]
[1767577525280,4.48868777,137.09,137.02,8.49163776]
[1767577525582,2.18880437,137.08,137.0,17.41549983]
[1767577526485,2.2998834,137.09,137.01,2.35186207]
[1767577526684,6.5678,137.1,137.01,2.35186207]
[1767577526882,2.18880437,137.11,137.02,2.35186207]
[1767577527190,2.18880437,137.14,137.05,2.35186207]
[1767577529490,2.18880437,137.13,137.05,2.35186207]
[1767577530378,8.75510437,137.13,137.05,2.35186207]
[1767577530686,2.20150716,137.12,137.05,2.35186207]
[1767577530879,2.20150716,137.11,137.03,8.49163776]
[1767577531085,88.36150716,137.1,137.02,2.35424719]
[1767577532291,2.20150716,137.09,137.02,2.35424719]
[1767577534290,8.76970716,137.09,137.02,2.35424719]
[1767577534586,8.76970716,137.09,137.0,6.572]
[1767577534883,2.20150716,137.09,136.99,10.84588495]
[1767577535684,2.24868417,137.07,136.99,2.35424719]
[1767577535888,2.24868417,137.07,136.97,10.74663327]
[1767577536390,8.81878417,137.05,136.97,10.74663327]
[1767577536596,94.99878417,137.05,136.97,2.25499551]
[1767577536888,6.5705,137.04,136.97,2.25499551]
[1767577537090,2.24868417,137.03,136.94,17.32153327]
[1767577537292,2.24868417,137.03,136.95,2.25499551]
[1767577538989,2.24868417,137.03,136.93,8.49163776]
[1767577538990,2.24868417,137.01,136.92,10.74663327]
[1767577539183,88.42868417,137.0,136.92,2.25499551]
[1767577539378,2.24868417,136.99,136.89,2.25499551]
[1767577540592,8.82178417,136.99,136.89,2.25499551]
[1767577541388,2.24868417,136.98,136.89,2.25499551]
[1767577541594,8.82238417,136.97,136.89,2.25499551]
[1767577541889,2.24868417,136.96,136.89,2.25499551]
[1767577542999,2.24868417,136.99,136.89,2.25499551]
[1767577543200,88.44868417,137.01,136.9,2.25499551]
[1767577543590,2.24868417,137.04,136.94,2.25499551]
[1767577543786,86.2,137.03,136.94,2.25499551]
[1767577544202,88.44868417,137.03,136.94,8.82979551]
[1767577544595,2.24868417,137.02,136.94,2.25499551]
[1767577547397,88.46868417,137.02,136.94,2.25499551]
[1767577548604,95.04028417,137.02,136.94,2.25499551]
[1767577548805,2.24868417,137.01,136.91,8.83139551]
[1767577549108,88.46868417,137.01,136.92,2.25499551]
[1767577549498,88.46868417,137.01,136.93,2.25499551]
[1767577549906,88.46868417,137.01,136.94,2.25499551]
[1767577550108,2.24868417,137.01,136.94,2.25499551]
[1767577551501,86.22,137.02,136.95,2.25499551]
[1767577551907,88.46868417,137.02,136.95,2.25499551]
[1767577552705,88.46868417,137.02,136.94,6.5748]
[1767577553000,2.24868417,137.01,136.93,2.25499551]
[1767577553208,86.22,137.02,136.93,2.25499551]
[1767577554807,86.22,137.02,136.94,8.82989551]
[1767577556110,2.24868417,137.01,136.92,8.83089551]
[1767577556912,2.24868417,137.01,136.93,2.25499551]
[1767577557406,2.24868417,137.01,136.92,6.5759]
[1767577557612,2.24868417,137.01,136.9,8.83169551]
[1767577557815,2.24868417,137.0,136.9,8.83169551]
[1767577558412,2.24868417,136.99,136.9,8.83169551]
[1767577558712,2.24868417,136.99,136.91,8.83139551]
[1767577562412,92.8124,137.0,136.92,8.79672526]
[1767577562615,92.8124,137.0,136.93,2.22082526]
[1767577562812,95.03640999,137.0,136.93,2.22082526]
[1767577564716,2.22400999,136.99,136.9,8.79772526]
[1767577565016,2.22400999,136.98,136.87,2.22082526]
[1767577565418,2.22400999,136.96,136.87,2.22082526]
[1767577565720,88.46400999,136.95,136.87,2.22082526]
[1767577566418,2.22400999,136.92,136.81,17.20111019]
[1767577566622,2.22400999,136.89,136.81,17.20111019]
[1767577566830,88.46400999,136.89,136.81,17.20111019]
[1767577567621,86.24,136.9,136.82,2.22082526]
[1767577568116,86.24,136.9,136.84,0.0489622]
[1767577569613,2.22400999,136.92,136.84,0.0489622]
[1767577569819,86.26,136.92,136.84,2.26978746]
[1767577570119,2.22400999,136.95,136.85,2.22082526]
[1767577570422,88.48400999,136.95,136.87,2.22082526]
[1767577570808,88.48400999,136.95,136.9,0.04640804]
[1767577571014,95.05900999,136.95,136.9,0.04640804]
[1767577571312,2.22400999,136.94,136.9,0.04640804]
[1767577571510,2.22400999,136.94,136.87,2.22082526]
[1767577572322,2.22400999,136.94,136.84,8.80062526]
[1767577572822,2.22400999,136.92,136.84,2.22082526]
[1767577573718,2.22400999,136.91,136.82,86.3]
[1767577573920,2.22400999,136.91,136.82,2.22082526]
[1767577574327,2.22400999,136.91,136.82,8.80142526]
[1767577575426,2.22400999,136.89,136.81,17.20111019]
[1767577575716,2.22400999,136.89,136.81,19.42193545]
[1767577575915,88.50400999,136.9,136.82,2.22082526]
[1767577576519,2.22400999,136.89,136.81,17.20111019]
[1767577576919,2.22400999,136.88,136.79,2.22082526]
[1767577577229,2.22400999,136.88,136.76,104.62952526]
[1767577577432,2.22400999,136.88,136.77,2.22082526]
[1767577578519,2.22400999,136.85,136.77,2.22082526]
[1767577579121,2.22400999,136.84,136.74,8.80552526]
[1767577579425,2.22400999,136.84,136.75,2.22082526]
[1767577580110,2.22400999,136.84,136.75,8.80482526]
[1767577580314,86.28,136.85,136.76,2.22082526]
[1767577580511,86.28,136.85,136.77,2.22082526]
[1767577580716,86.28,136.85,136.78,2.22082526]
[1767577581522,86.28,136.85,136.78,8.80322526]
[1767577582419,86.28,136.85,136.79,8.80282526]
[1767577582620,2.22400999,136.87,136.79,104.61312526]
[1767577582823,86.3,136.89,136.8,2.22082526]
[1767577583424,88.52400999,136.89,136.8,8.80222526]
[1767577584730,88.52400999,136.89,136.82,2.22082526]
[1767577584731,86.3,136.89,136.82,2.22082526]
[1767577585422,2.22400999,136.92,136.84,6.5797]
[1767577585622,2.22400999,136.94,136.85,2.22082526]
[1767577586532,8.79940999,136.94,136.85,2.22082526]
[1767577587719,2.22400999,136.94,136.86,2.22082526]
[1767577588425,2.22400999,136.94,136.86,8.79942526]
[1767577588625,2.22400999,136.94,136.86,2.22082526]
[1767577589630,2.22400999,136.94,136.87,6.5781]
[1767577591032,86.3,136.95,136.87,8.85167414]
[1767577591228,86.3,136.95,136.88,2.27357414]
[1767577591940,2.10830089,136.97,136.88,2.27357414]
[1767577592232,2.10830089,136.97,136.88,8.85127414]
[1767577592533,2.10830089,137.0,136.91,2.27357414]
[1767577593222,2.10830089,137.0,136.92,8.84937414]
[1767577594328,2.10830089,136.99,136.89,2.27357414]
[1767577595539,2.16372718,136.98,136.89,2.27357414]
[1767577599538,2.16372718,137.01,136.91,2.23470205]
[1767577599736,2.16372718,137.01,136.92,2.23470205]
[1767577600338,86.3,137.02,136.94,8.80980205]
[1767577600646,88.44372718,137.07,136.96,2.23470205]
[1767577600836,2.16372718,137.06,136.96,2.23470205]
[1767577601143,2.16372718,137.06,136.96,8.80860205]
[1767577602043,2.16372718,137.06,136.97,8.80810205]
[1767577602238,2.16372718,137.06,136.98,2.23470205]
[1767577603243,2.16372718,137.06,136.99,6.5726]
[1767577604047,2.16372718,137.06,136.96,102.2624]
[1767577604048,2.21135704,137.04,136.95,2.23470205]
[1767577604253,2.21135704,137.04,136.96,2.23470205]
[1767577604548,2.16372718,137.04,136.96,2.23470205]
[1767577604748,2.16372718,137.04,136.96,8.80860205]
[1767577605649,0.05065915,137.01,136.96,8.80860205]
[1767577607348,0.05065915,137.01,136.97,2.23470205]
[1767577607551,2.16372718,137.07,136.99,2.23470205]
[1767577608443,2.16372718,137.07,136.98,6.5731]
[1767577608843,2.16372718,137.07,136.98,8.80780205]
[1767577610049,2.16372718,137.07,136.99,2.23470205]
[1767577610748,2.16372718,137.06,136.97,86.26]
[1767577610951,2.16372718,137.06,136.97,88.49470205]
[1767577611546,2.16372718,137.05,136.97,88.49470205]
[1767577613141,2.16372718,137.03,136.94,2.23470205]
[1767577614649,8.73522718,137.02,136.94,2.23470205]
[1767577614952,2.16372718,137.01,136.92,6.576]
[1767577615454,2.16372718,137.01,136.92,8.81070205]
[1767577617256,2.16372718,137.01,136.93,8.81000205]
[1767577617460,188.4294,137.04,136.94,2.23470205]
[1767577617461,2.16372718,137.03,136.94,2.23470205]
[1767577617961,2.16372718,137.03,136.92,8.81060205]
[1767577618261,2.16372718,137.03,136.93,2.23470205]
[1767577619257,2.16372718,137.03,136.94,2.23470205]
[1767577620161,86.22,137.04,136.95,2.23470205]
[1767577620757,86.22,137.04,136.96,8.79129931]
[1767577620959,86.22,137.04,136.97,2.21749931]
[1767577621258,102.1641,137.1,137.01,2.21749931]
[1767577621259,2.18733148,137.09,137.01,2.21749931]
[1767577621466,2.18733148,137.12,137.01,2.21749931]
[1767577621850,8.75413148,137.12,137.04,0.05318917]
[1767577622051,2.18733148,137.11,137.04,0.05318917]
[1767577624757,8.75453148,137.11,137.04,0.05318917]
[1767577625257,2.18733148,137.11,137.04,0.05318917]
[1767577625458,92.8061,137.13,137.04,2.27068848]
[1767577625670,94.99343148,137.13,137.04,2.27068848]
[1767577625963,2.18733148,137.12,137.04,2.21749931]
[1767577626256,2.18733148,137.12,137.07,0.04817008]
[1767577626857,2.18733148,137.15,137.07,2.26566939]
[1767577627965,2.18733148,137.15,137.01,190.68219931]
[1767577627966,2.18733148,137.14,137.01,190.68219931]
[1767577628156,2.18733148,137.14,137.02,2.21749931]
[1767577628555,8.75363148,137.13,137.03,8.78809931]
[1767577628960,8.75363148,137.13,137.04,2.21749931]
[1767577629858,2.18733148,137.13,137.04,8.78749931]
[1767577630061,2.18733148,137.16,137.08,2.21749931]
[1767577630262,105.70357596,137.22,137.09,2.21749931]
[1767577630263,2.18733148,137.19,137.09,2.21749931]
[1767577630958,2.18733148,137.18,137.09,2.21749931]
[1767577631154,102.0968,137.19,137.09,2.21749931]
[1767577631155,8.75143148,137.17,137.09,2.21749931]
[1767577631356,2.18733148,137.16,137.07,6.5686]
[1767577631554,2.18733148,137.16,137.06,2.21749931]
[1767577631758,8.75223148,137.16,137.06,8.78649931]
[1767577631951,2.18733148,137.15,137.06,2.21749931]
[1767577632963,2.18733148,137.14,137.04,6.5702]
[1767577633164,2.18733148,137.14,137.04,8.78769931]
[1767577635165,2.18733148,137.13,137.04,2.21749931]
[1767577636566,2.18733148,137.12,137.04,2.21749931]
[1767577636865,2.18733148,137.12,137.01,2.21749931]
[1767577637472,2.18733148,137.1,137.01,2.21749931]
[1767577639672,8.75513148,137.1,137.01,2.21749931]
[1767577639968,2.18733148,137.13,137.02,2.21749931]
[1767577640273,2.18733148,137.13,137.04,2.27292438]
[1767577640772,2.18733148,137.13,137.04,2.21749931]
[1767577641468,2.18733148,137.13,137.07,0.05268851]
[1767577642271,2.18733148,137.13,137.04,2.21749931]
[1767577642459,2.18733148,137.13,137.01,86.2]
[1767577642460,6.5679,137.1,137.01,2.21749931]
[1767577642965,2.18733148,137.11,137.01,2.21749931]
[1767577644571,2.18733148,137.11,137.02,8.78849931]
[1767577645177,2.18733148,137.11,137.03,2.21749931]
[1767577647474,8.75453148,137.11,137.03,2.21749931]
[1767577648074,2.18733148,137.1,137.03,2.21749931]
[1767577648277,8.75493148,137.1,137.03,2.21749931]
[1767577649381,2.18733148,137.08,136.97,10.70913707]
[1767577649582,2.18733148,137.08,136.97,2.21749931]
[1767577650070,2.18733148,137.05,136.97,2.21749931]
[1767577650480,8.75733148,137.05,136.97,2.21749931]
[1767577650675,102.1788,137.08,136.98,2.0046606]
[1767577650676,2.15959548,137.08,136.98,2.0046606]
[1767577651071,6.569,137.07,136.98,8.5776606]
[1767577651683,8.72859548,137.07,136.98,8.5776606]
[1767577651978,2.15959548,137.06,136.98,8.5776606]
[1767577654384,2.15959548,137.05,136.98,2.0046606]
[1767577657983,2.15959548,137.05,136.96,2.16014982]
[1767577659581,2.15959548,137.05,136.97,8.73354982]
[1767577662489,2.15959548,137.05,136.98,8.73314982]
[1767577662692,6.5691,137.07,137.0,0.04805418]
[1767577662889,2.1501607,137.1,137.03,8.73084982]
[1767577663082,2.1501607,137.13,137.03,8.73084982]
[1767577663388,8.7168607,137.12,137.03,8.73084982]
[1767577663778,8.7168607,137.12,137.07,0.05093508]
[1767577665287,86.2,137.14,137.07,0.05093508]
[1767577665476,88.3501607,137.14,137.07,0.05093508]
[1767577667496,2.1501607,137.17,137.08,2.16014982]
[1767577667796,2.1501607,137.2,137.1,2.16014982]
[1767577668293,2.1501607,137.2,137.14,0.04705945]
[1767577668485,2.1501607,137.2,137.1,2.16014982]
[1767577668683,2.1501607,137.18,137.1,2.16014982]
[1767577668989,2.1501607,137.14,137.04,88.38014982]
[1767577669390,8.7159607,137.14,137.04,94.95034982]
[1767577669596,8.7159607,137.14,137.05,2.16014982]
[1767577669896,2.1501607,137.14,137.05,2.16014982]
[1767577670089,2.1501607,137.14,137.05,8.72974982]
[1767577670290,86.18,137.15,137.06,2.16014982]
[1767577670895,88.3301607,137.15,137.06,2.16014982]
[1767577671195,88.3301607,137.15,137.07,2.16014982]
[1767577672992,2.1501607,137.14,137.07,2.16014982]
[1767577673384,2.1501607,137.14,137.04,94.93034982]
[1767577673587,2.1501607,137.14,137.05,2.16014982]
[1767577678898,2.1501607,137.13,137.05,2.16014982]
[1767577680701,2.1501607,137.13,137.05,8.72974982]
[1767577681397,92.7454,137.15,137.06,2.04495378]
[1767577681599,86.18,137.15,137.07,2.04495378]
[1767577682703,86.18,137.15,137.08,2.04495378]
[1767577682904,2.10341988,137.14,137.07,6.5686]
[1767577683598,2.10341988,137.14,137.05,17.10619154]
[1767577683804,2.10341988,137.14,137.05,8.61455378]
[1767577685508,2.10341988,137.14,137.05,2.04495378]
[1767577685805,8.66941988,137.14,137.05,2.04495378]
[1767577686001,2.10341988,137.13,137.05,2.04495378]
[1767577686798,2.10341988,137.12,137.04,6.57]
[1767577687000,2.10341988,137.11,137.02,2.04495378]
[1767577687599,8.67121988,137.1,137.02,2.04495378]
[1767577687809,2.10341988,137.09,137.02,2.04495378]
[1767577689500,2.10341988,137.09,137.02,8.61585378]
[1767577689705,2.10341988,137.12,137.03,2.04495378]
[1767577691602,2.10341988,137.12,137.05,8.61445378]
[1767577693011,88.28341988,137.15,137.07,2.04495378]
[1767577693399,88.28341988,137.15,137.07,8.61365378]
[1767577693605,2.10341988,137.17,137.08,2.04495378]
[1767577694608,2.10341988,137.17,137.08,8.61315378]
[1767577695810,2.10341988,137.17,137.09,2.04495378]
[1767577696807,2.10341988,137.17,137.1,8.61235378]
[1767577696998,2.10341988,137.17,137.08,86.2]
[1767577697517,2.10341988,137.17,137.08,88.24495378]
[1767577698019,2.10341988,137.16,137.05,2.04495378]
[1767577698806,8.66821988,137.16,137.05,8.61455378]
[1767577699118,2.10341988,137.15,137.05,8.61455378]
[1767577700621,2.10341988,137.14,137.05,8.61455378]
[1767577701415,2.10341988,137.11,137.03,6.5708]
[1767577701619,2.10341988,137.11,137.03,8.61575378]
[1767577702312,2.10341988,137.16,137.09,2.04495378]
[1767577702506,2.10341988,137.19,137.09,2.04495378]
[1767577702910,2.10341988,137.19,137.1,2.04495378]
[1767577703517,2.10341988,137.18,137.1,2.04495378]
[1767577704916,8.66751988,137.18,137.08,15.05983776]
[1767577705123,2.10341988,137.17,137.07,2.04495378]
[1767577706721,8.66831988,137.16,137.07,2.04495378]
[1767577707311,8.66831988,137.16,137.07,8.61365378]